fUSD/lending_fUSD_20240719
["ID","MTS","AMOUNT","RATE_DAILY","PERIOD"]
[332643492,1721403050023,-635.55,0.00032266,2]
[332643493,1721403050034,-362.12,0.00032266,2]
[332643494,1721403050044,-150.0,0.00032266,2]
[332643495,1721403050054,-425.07,0.00032266,2]
[332643496,1721403050064,-529.52,0.00032266,2]
[332643497,1721403050074,-355.44,0.00032266,2]
[332643498,1721403050085,-150.0,0.00032266,2]
[332643499,1721403050095,-165.19,0.00032266,2]
[332643500,1721403050106,-300.0,0.00032266,2]
[332643501,1721403050115,-165.19,0.00032266,2]
[332643502,1721403050125,-425.19,0.00032266,2]
[332643503,1721403050135,-355.55,0.00032266,2]
[332643504,1721403050144,-529.52,0.00032266,2]
[332643505,1721403050154,-425.19,0.00032266,2]
[332643506,1721403050164,-165.19,0.00032266,2]
[332643507,1721403050173,-529.52,0.00032266,2]
[332643508,1721403050182,-425.19,0.00032266,2]
[332643509,1721403050192,-331.3,0.00032266,2]
[332643510,1721403050202,-150.0,0.00032266,2]
[332643511,1721403050211,-425.19,0.00032266,2]
[332643512,1721403050222,-425.19,0.00032266,2]
[332643513,1721403050232,-150.0,0.00032285,7]
[332643514,1721403050243,-3000.0,0.0003232,2]
[332643515,1721403050253,-150.0,0.00032336,7]
[332643516,1721403050263,-152.61344492,0.00032365,7]
[332643517,1721403050272,-151.0,0.00032366,7]
[332643518,1721403050286,-151.0,0.00032366,7]
[332643519,1721403050297,-151.0,0.00032366,7]
[332643520,1721403050307,-2486.59170901,0.00032374,15]
[332643521,1721403050318,-1837.02211287,0.00032374,15]
[332643522,1721403050330,-150.0,0.00032387,7]
[332643523,1721403050339,-153.22167699,0.00032392,7]
[332643524,1721403050349,-3000.0,0.000324,4]
[332643525,1721403050358,-150.0,0.00032439,7]
[332643526,1721403050368,-150.0,0.0003249,7]
[332643527,1721403050378,-4000.0,0.000325,2]
[332643528,1721403050388,-1214.0,0.000325,21]
[332643529,1721403050397,-150.0,0.00032541,7]
[332643530,1721403050407,-150.0,0.00032593,7]
[332643531,1721403050417,-50000.0,0.000326,2]
[332643532,1721403050427,-909.78,0.000326,2]
[332643533,1721403050437,-151.0,0.000326,7]
[332643534,1721403050447,-300.0,0.000326,3]
[332643535,1721403050461,-1000.0,0.000326,11]
[332643536,1721403050471,-600.0,0.00032601,10]
[332643537,1721403050481,-515.57192384,0.00032601,10]
[332643538,1721403050490,-302.46975047,0.00032601,10]
[332643539,1721403050501,-151.42136548,0.00032624,7]
[332643540,1721403050510,-150.0,0.00032644,7]
[332643541,1721403050520,-5800.0,0.00032657,2]
[332643542,1721403050533,-5800.0,0.00032666,2]
[332643543,1721403050543,-5800.0,0.00032668,2]
[332643544,1721403050552,-5800.0,0.00032674,2]
[332643545,1721403050562,-5800.0,0.00032677,2]
[332643546,1721403050573,-526.09991014,0.00032681,4]
[332643547,1721403050582,-5800.0,0.00032683,2]
[332643548,1721403050591,-1898.62340177,0.00032685,2]
[332643549,1721403050601,-5800.0,0.00032685,2]
[332643550,1721403050611,-5800.0,0.00032691,2]
[332643551,1721403050620,-150.0,0.00032695,7]
[332643552,1721403050629,-5800.0,0.000327,2]
[332643553,1721403050639,-12117.8,0.000327,14]
[332643554,1721403050648,-3601.75684798,0.000327,7]
[332643555,1721403050658,-1300.0,0.000327,11]
[332643556,1721403050668,-152.61344492,0.00032716,7]
[332643557,1721403050678,-150.0,0.00032747,7]
[332643558,1721403050687,-218.49372438,0.00032776,2]
[332643559,1721403050697,-1208.66383264,0.00032776,2]
[332643560,1721403050707,-2613.98303483,0.00032776,2]
[332643561,1721403051320,-2734.96269654,0.00032776,2]
[332643562,1721403051331,-1280.03158829,0.00032776,2]
[332643563,1721403051341,-150.0,0.00032798,7]
[332643564,1721403051350,-302.44312722,0.000328,30]
[332643565,1721403051359,-2000.0,0.000328,9]
[332643566,1721403051369,-151.0,0.000328,7]
[332643567,1721403051379,-151.0,0.000328,7]
[332643568,1721403051388,-200.0,0.000328,11]
[332643569,1721403051398,-500.0,0.00032821,30]
[332643570,1721403051408,-810.17,0.00032821,30]
[332643571,1721403051418,-160.83864897,0.0003283,7]
[332643572,1721403051428,-213.45477432,0.00032849,7]
[332643573,1721403051438,-150.0,0.00032849,7]
[332643574,1721403051447,-150.27074448,0.00032849,7]
[332643575,1721403051458,-150.0,0.00032849,7]
[332643576,1721403051469,-150.0,0.00032849,7]
[332643577,1721403051479,-150.0,0.00032849,7]
[332643578,1721403051489,-194.8152969,0.00032849,7]
[332643579,1721403051498,-150.0,0.00032849,7]
[332643580,1721403051508,-150.0,0.00032849,7]
[332643581,1721403051519,-213.45477432,0.00032852,7]
[332643582,1721403051529,-150.0,0.00032854,7]
[332643583,1721403051539,-213.45477432,0.00032855,7]
[332643584,1721403051550,-150.0,0.00032856,7]
[332643585,1721403051560,-213.45477432,0.00032858,7]
[332643586,1721403051569,-150.0,0.00032859,7]
[332643587,1721403051579,-150.0,0.00032859,7]
[332643588,1721403051588,-213.45477432,0.00032861,7]
[332643589,1721403051597,-150.0,0.00032862,7]
[332643590,1721403051607,-150.0,0.00032863,7]
[332643591,1721403051616,-213.45477432,0.00032864,7]
[332643592,1721403051626,-213.45477432,0.00032867,7]
[332643593,1721403051635,-150.0,0.00032868,7]
[332643594,1721403051644,-150.0,0.00032868,7]
[332643595,1721403051654,-150.0,0.00032869,7]
[332643596,1721403051664,-213.45477432,0.00032871,7]
[332643597,1721403051673,-150.0,0.00032872,7]
[332643598,1721403051684,-150.0,0.00032872,7]
[332643599,1721403051694,-209.93309956,0.00032874,4]
[332643600,1721403051706,-286.70183216,0.00032874,4]
[332643601,1721403051716,-980.83446551,0.00032874,4]
[332643602,1721403051728,-571.48088153,0.00032874,4]
[332643603,1721403051739,-5958.007393,0.00032874,4]
[332643604,1721403051751,-5658.86,0.00032874,4]
[332643605,1721403051763,-13242.21333354,0.00032874,4]
[332643606,1721403051772,-213.45477432,0.00032874,7]
[332643607,1721403051784,-150.0,0.00032875,7]
[332643608,1721403051794,-500.0,0.00032875,2]
[332643609,1721403051803,-150.0,0.00032875,10]
[332643610,1721403051812,-150.0,0.00032875,10]
[332643611,1721403051821,-150.0,0.00032875,10]
[332643612,1721403051831,-150.0,0.00032875,10]
[332643613,1721403051841,-500.0,0.00032876,14]
[332643614,1721403051850,-833.33,0.00032876,14]
[332643615,1721403051863,-500.0,0.00032876,14]
[332643616,1721403051872,-493.04263123,0.00032876,14]
[332643617,1721403051881,-500.0,0.00032876,14]
[332643618,1721403051890,-500.0,0.00032876,14]
[332643619,1721403051899,-500.0,0.00032876,14]
[332643620,1721403051908,-500.0,0.00032876,14]
[332643621,1721403051918,-500.0,0.00032876,14]
[332643622,1721403051927,-500.0,0.00032876,14]
[332643623,1721403051936,-500.0,0.00032876,14]
[332643624,1721403051945,-500.0,0.00032876,14]
[332643625,1721403051954,-500.0,0.00032876,14]
[332643626,1721403051964,-500.0,0.00032876,14]
[332643627,1721403051974,-500.0,0.00032876,14]
[332643628,1721403051983,-544.13,0.00032876,14]
[332643629,1721403051993,-500.0,0.00032876,14]
[332643630,1721403052002,-500.0,0.00032876,14]
[332643631,1721403052011,-500.0,0.00032876,14]
[332643632,1721403052020,-592.43,0.00032876,14]
[332643633,1721403052030,-500.0,0.00032876,14]
[332643634,1721403052039,-500.0,0.00032876,14]
[332643635,1721403052048,-500.0,0.00032876,14]
[332643636,1721403052058,-535.02,0.00032876,14]
[332643637,1721403052067,-500.0,0.00032876,14]
[332643638,1721403052076,-500.0,0.00032876,14]
[332643639,1721403052085,-500.0,0.00032876,14]
[332643640,1721403052095,-500.0,0.00032876,14]
[332643641,1721403052104,-1314.6,0.00032876,14]
[332643642,1721403052113,-2734.59,0.00032876,14]
[332643643,1721403052122,-2830.23,0.00032876,14]
[332643644,1721403052132,-500.0,0.00032876,14]
[332643645,1721403052142,-632.52,0.00032876,14]
[332643646,1721403052151,-500.0,0.00032876,14]
[332643647,1721403052160,-1416.89,0.00032876,14]
[332643648,1721403052169,-695.28,0.00032876,120]
[332643649,1721403052179,-500.0,0.00032876,14]
[332643650,1721403052188,-214.51064395,0.00032876,14]
[332643651,1721403052197,-500.0,0.00032876,14]
[332643652,1721403052207,-500.0,0.00032876,14]
[332643653,1721403052216,-500.0,0.00032876,14]
[332643654,1721403052225,-500.0,0.00032876,14]
[332643655,1721403052234,-500.0,0.00032876,14]
[332643656,1721403052242,-1341.92,0.00032876,14]
[332643657,1721403052252,-500.0,0.00032876,14]
[332643658,1721403052261,-500.0,0.00032876,14]
[332643659,1721403052271,-500.0,0.00032876,14]
[332643660,1721403052282,-500.0,0.00032876,14]
[332643661,1721403052291,-500.0,0.00032876,14]
[332643662,1721403052300,-500.0,0.00032876,14]
[332643663,1721403052309,-500.0,0.00032876,14]
[332643664,1721403052319,-500.0,0.00032876,14]
[332643665,1721403052328,-500.0,0.00032876,14]
[332643666,1721403052338,-500.0,0.00032876,14]
[332643667,1721403052346,-500.0,0.00032876,14]
[332643668,1721403052355,-500.0,0.00032876,14]
[332643669,1721403052364,-500.0,0.00032876,14]
[332643670,1721403052375,-500.0,0.00032876,14]
[332643671,1721403052385,-644.94373415,0.00032876,14]
[332643672,1721403052394,-4660.25,0.00032876,14]
[332643673,1721403052403,-2241.29,0.00032876,14]
[332643674,1721403052412,-500.0,0.00032876,14]
[332643675,1721403052422,-500.0,0.00032876,14]
[332643676,1721403052431,-500.0,0.00032876,14]
[332643677,1721403052440,-643.71402289,0.00032876,14]
[332643678,1721403052450,-500.0,0.00032876,14]
[332643679,1721403052464,-500.0,0.00032876,14]
[332643680,1721403052473,-500.0,0.00032876,14]
[332643681,1721403052483,-500.5761075,0.00032876,14]
[332643682,1721403052493,-957.11,0.00032876,14]
[332643683,1721403052503,-500.0,0.00032876,14]
[332643684,1721403052512,-500.0,0.00032876,14]
[332643685,1721403052522,-500.0,0.00032876,14]
[332643686,1721403052533,-356.67,0.00032876,14]
[332643687,1721403052543,-629.70304537,0.00032876,14]
[332643688,1721403052552,-500.0,0.00032876,14]
[332643689,1721403052561,-500.0,0.00032876,14]
[332643690,1721403052570,-500.0,0.00032876,14]
[332643691,1721403052579,-500.0,0.00032876,14]
[332643692,1721403052589,-500.0,0.00032876,14]
[332643693,1721403052598,-877.56,0.00032876,14]
[332643694,1721403052608,-515.49,0.00032876,14]
[332643695,1721403052617,-500.0,0.00032876,14]
[332643696,1721403052626,-500.0,0.00032876,14]
[332643697,1721403052635,-501.97379222,0.00032876,14]
[332643698,1721403052645,-1477.9,0.00032876,14]
[332643699,1721403052654,-500.0,0.00032876,14]
[332643700,1721403052663,-500.0,0.00032876,14]
[332643701,1721403052673,-500.0,0.00032876,14]
[332643702,1721403052682,-500.0,0.00032876,14]
[332643703,1721403052691,-500.0,0.00032876,14]
[332643704,1721403052700,-500.0,0.00032876,14]
[332643705,1721403052709,-500.0,0.00032876,14]
[332643706,1721403052718,-597.23,0.00032876,14]
[332643707,1721403052727,-500.0,0.00032876,14]
[332643708,1721403052736,-689.3,0.00032876,14]
[332643709,1721403052745,-1046.23,0.00032876,14]
[332643710,1721403052755,-1705.13,0.00032876,14]
[332643711,1721403052764,-500.0,0.00032876,14]
[332643712,1721403052773,-500.0,0.00032876,14]
[332643713,1721403052784,-778.74,0.00032876,14]
[332643714,1721403052795,-679.86,0.00032876,14]
[332643715,1721403052804,-500.0,0.00032876,14]
[332643716,1721403052813,-500.0,0.00032876,14]
[332643717,1721403052822,-542.8,0.00032876,14]
[332643718,1721403052831,-158.56080445,0.00032876,14]
[332643719,1721403052841,-500.0,0.00032876,14]
[332643720,1721403052850,-500.0,0.00032876,14]
[332643721,1721403052859,-500.0,0.00032876,14]
[332643722,1721403052868,-500.0,0.00032876,14]
[332643723,1721403052877,-500.0,0.00032876,14]
[332643724,1721403052886,-518.50805154,0.00032876,14]
[332643725,1721403052895,-500.0,0.00032876,14]
[332643726,1721403052904,-500.0,0.00032876,14]
[332643727,1721403052913,-500.0,0.00032876,14]
[332643728,1721403052922,-500.0,0.00032876,14]
[332643729,1721403052932,-500.0,0.00032876,14]
[332643730,1721403052941,-500.0,0.00032876,14]
[332643731,1721403052952,-525.83,0.00032876,14]
[332643732,1721403052962,-500.0,0.00032876,14]
[332643733,1721403052971,-500.0,0.00032876,14]
[332643734,1721403052981,-500.0,0.00032876,14]
[332643735,1721403052992,-843.49,0.00032876,14]
[332643736,1721403053002,-500.0,0.00032876,14]
[332643737,1721403053012,-500.0,0.00032876,14]
[332643738,1721403053022,-500.0,0.00032876,14]
[332643739,1721403053034,-500.0,0.00032876,14]
[332643740,1721403053043,-500.0,0.00032876,14]
[332643741,1721403053053,-500.0,0.00032876,14]
[332643742,1721403053063,-500.0,0.00032876,14]
[332643743,1721403053072,-500.0,0.00032876,14]
[332643744,1721403053082,-500.0,0.00032876,14]
[332643745,1721403053091,-500.0,0.00032876,14]
[332643746,1721403053100,-504.8740137,0.00032876,14]
[332643747,1721403053110,-500.0,0.00032876,14]
[332643748,1721403053120,-500.0,0.00032876,14]
[332643749,1721403053130,-293.31567946,0.00032876,14]
[332643750,1721403053139,-500.0,0.00032876,14]
[332643751,1721403053149,-500.0,0.00032876,14]
[332643752,1721403053158,-500.0,0.00032876,14]
[332643753,1721403053167,-500.0,0.00032876,14]
[332643754,1721403053178,-500.0,0.00032876,14]
[332643755,1721403053187,-500.0,0.00032876,14]
[332643756,1721403053196,-500.0,0.00032876,14]
[332643757,1721403053205,-500.0,0.00032876,14]
[332643758,1721403053214,-500.0,0.00032876,14]
[332643759,1721403053224,-500.0,0.00032876,14]
[332643760,1721403053233,-500.0,0.00032876,14]
[332643761,1721403053242,-500.0,0.00032876,14]
[332643762,1721403053255,-500.0,0.00032876,14]
[332643763,1721403053268,-500.0,0.00032876,14]
[332643764,1721403053282,-500.0,0.00032876,14]
[332643765,1721403053293,-500.0,0.00032876,14]
[332643766,1721403053304,-500.0,0.00032876,14]
[332643767,1721403053315,-500.0,0.00032876,14]
[332643768,1721403053328,-500.0,0.00032876,14]
[332643769,1721403053340,-500.0,0.00032876,14]
[332643770,1721403053351,-500.0,0.00032876,14]
[332643771,1721403053363,-500.0,0.00032876,14]
[332643772,1721403053377,-500.0,0.00032876,14]
[332643773,1721403053390,-500.0,0.00032876,14]
[332643774,1721403053402,-500.0,0.00032876,14]
[332643775,1721403053415,-500.0,0.00032876,14]
[332643776,1721403053427,-503.97230034,0.00032876,14]
[332643777,1721403053439,-497.8387459,0.00032876,14]
[332643778,1721403053450,-500.0,0.00032876,14]
[332643779,1721403053461,-609.14,0.00032876,14]
[332643780,1721403053475,-500.0,0.00032876,14]
[332643781,1721403053488,-500.0,0.00032876,14]
[332643782,1721403053501,-526.69052588,0.00032876,14]
[332643783,1721403053513,-396.37644001,0.00032876,14]
[332643784,1721403053526,-500.0,0.00032876,14]
[332643785,1721403053545,-522.89,0.00032876,14]
[332643786,1721403053557,-500.0,0.00032876,14]
[332643787,1721403053569,-500.0,0.00032876,14]
[332643788,1721403053589,-500.0,0.00032876,14]
[332643789,1721403053600,-500.0,0.00032876,14]
[332643790,1721403053611,-500.0,0.00032876,14]
[332643791,1721403053625,-540.53,0.00032876,14]
[332643792,1721403053636,-500.0,0.00032876,14]
[332643793,1721403053648,-500.0,0.00032876,14]
[332643794,1721403053660,-500.0,0.00032876,14]
[332643795,1721403053670,-500.0,0.00032876,14]
[332643796,1721403053683,-573.17,0.00032876,14]
[332643797,1721403053696,-500.0,0.00032876,14]
[332643798,1721403053708,-500.0,0.00032876,14]
[332643799,1721403053720,-500.0,0.00032876,14]
[332643800,1721403053733,-523.04242185,0.00032876,14]
[332643801,1721403053745,-500.0,0.00032876,14]
[332643802,1721403053757,-500.0,0.00032876,14]
[332643803,1721403053768,-433.13504331,0.00032876,14]
[332643804,1721403053782,-500.0,0.00032876,14]
[332643805,1721403053793,-500.0,0.00032876,14]
[332643806,1721403053804,-501.06780286,0.00032876,14]
[332643807,1721403053815,-500.0,0.00032876,14]
[332643808,1721403053829,-399.07656159,0.00032876,14]
[332643809,1721403053842,-500.0,0.00032876,14]
[332643810,1721403053852,-500.0,0.00032876,14]
[332643811,1721403053863,-500.0,0.00032876,14]
[332643812,1721403053874,-368.56640606,0.00032876,14]
[332643813,1721403053885,-754.08,0.00032876,14]
[332643814,1721403053896,-608.97,0.00032876,14]
[332643815,1721403053908,-500.0,0.00032876,14]
[332643816,1721403053920,-500.0,0.00032876,14]
[332643817,1721403053930,-500.0,0.00032876,7]
[332643818,1721403053940,-621.84639476,0.00032876,14]
[332643819,1721403053950,-1001.66,0.00032876,14]
[332643820,1721403053960,-151.0,0.00032876,7]
[332643821,1721403053971,-200.0,0.00032876,7]
[332643822,1721403053982,-239.88,0.00032876,7]
[332643823,1721403053996,-1048.08,0.00032876,30]
[332643824,1721403054007,-500.0,0.00032876,2]
[332643825,1721403054018,-500.0,0.00032876,14]
[332643826,1721403054031,-500.0,0.00032876,14]
[332643827,1721403054042,-500.0,0.00032876,14]
[332643828,1721403054053,-1743.27,0.00032876,14]
[332643829,1721403054064,-151.0,0.00032876,7]
[332643830,1721403054079,-500.0,0.00032876,14]
[332643831,1721403054090,-151.0,0.00032876,7]
[332643832,1721403054101,-500.0,0.00032876,14]
[332643833,1721403054112,-225.092576,0.00032876,7]
[332643834,1721403054123,-500.0,0.00032876,7]
[332643835,1721403054135,-500.0,0.00032876,7]
[332643836,1721403054146,-500.0,0.00032876,14]
[332643837,1721403054157,-564.03,0.00032876,30]
[332643838,1721403054168,-1067.65,0.00032876,14]
[332643839,1721403054178,-500.0,0.00032876,14]
[332643840,1721403054189,-563.9,0.00032876,14]
[332643841,1721403054200,-500.0,0.00032876,14]
[332643842,1721403054211,-151.0,0.00032876,7]
[332643843,1721403054222,-500.0,0.00032876,14]
[332643844,1721403054233,-557.71,0.00032876,14]
[332643845,1721403054244,-500.0,0.00032876,14]
[332643846,1721403054255,-151.0,0.00032876,7]
[332643847,1721403054265,-151.0,0.00032876,7]
[332643848,1721403054276,-1906.64,0.00032876,14]
[332643849,1721403054288,-500.0,0.00032876,14]
[332643850,1721403054299,-500.0,0.00032876,14]
[332643851,1721403054310,-500.0,0.00032876,14]
[332643852,1721403054321,-500.0,0.00032876,14]
[332643853,1721403054332,-500.0,0.00032876,14]
[332643854,1721403054343,-500.0,0.00032876,14]
[332643855,1721403054354,-500.0,0.00032876,14]
[332643856,1721403054365,-1125.93,0.00032876,14]
[332643857,1721403054378,-612.3,0.00032876,14]
[332643858,1721403054389,-500.0,0.00032876,14]
[332643859,1721403054400,-151.0,0.00032876,7]
[332643860,1721403054411,-151.0,0.00032876,7]
[332643861,1721403054421,-306.958866,0.00032876,7]
[332643862,1721403054432,-306.958866,0.00032876,7]
[332643863,1721403054444,-151.0,0.00032876,7]
[332643864,1721403054460,-543.63726399,0.00032876,14]
[332643865,1721403054471,-1081.44,0.00032876,14]
[332643866,1721403054482,-520.8575864,0.00032876,14]
[332643867,1721403054494,-1000.0,0.00032876,2]
[332643868,1721403054505,-1324.3,0.00032876,2]
[332643869,1721403054515,-213.45477432,0.00032877,7]
[332643870,1721403054526,-1000.0,0.00032877,30]
[332643871,1721403054538,-1000.0,0.00032877,30]
[332643872,1721403054549,-1056.57077339,0.00032877,30]
[332643873,1721403054560,-150.0,0.00032877,7]
[332643874,1721403054570,-405.191892,0.00032877,7]
[332643875,1721403054581,-405.191892,0.00032877,7]
[332643876,1721403054593,-150.0,0.00032878,7]
[332643877,1721403054604,-213.45477432,0.0003288,7]
[332643878,1721403054615,-150.0,0.00032881,7]
[332643879,1721403054626,-150.0,0.00032882,7]
[332643880,1721403054638,-213.45477432,0.00032883,7]
[332643881,1721403054650,-213.45477432,0.00032886,7]
[332643882,1721403054662,-150.0,0.00032886,7]
[332643883,1721403054674,-150.0,0.00032887,7]
[332643884,1721403054686,-150.0,0.00032888,7]
[332643885,1721403054698,-150.0,0.00032888,7]
[332643886,1721403054710,-213.45477432,0.00032889,7]
[332643887,1721403054721,-150.0,0.00032891,7]
[332643888,1721403054733,-213.45477432,0.00032892,7]
[332643889,1721403054745,-150.0,0.00032894,7]
[332643890,1721403054755,-213.45477432,0.00032895,7]
[332643891,1721403054767,-150.0,0.00032895,7]
[332643892,1721403054781,-150.0,0.00032895,7]
[332643893,1721403054792,-150.0,0.00032898,7]
[332643894,1721403054803,-213.45477432,0.00032898,7]
[332643895,1721403054814,-2613.12,0.000329,2]
[332643896,1721403054826,-200.0,0.000329,12]
[332643897,1721403054838,-150.0,0.000329,7]
[332643898,1721403054851,-150.0,0.000329,7]
[332643899,1721403054862,-213.45477432,0.00032901,7]
[332643900,1721403054872,-213.45477432,0.00032904,7]
[332643901,1721403054883,-150.0,0.00032905,7]
[332643902,1721403054894,-150.0,0.00032907,7]
[332643903,1721403054904,-213.45477432,0.00032907,7]
[332643904,1721403054915,-150.0,0.00032907,7]
[332643905,1721403054926,-150.0,0.00032909,7]
[332643906,1721403054937,-213.45477432,0.0003291,7]
[332643907,1721403054948,-213.45477432,0.00032913,7]
[332643908,1721403054960,-152.319699,0.00032913,7]
[332643909,1721403054972,-150.0,0.00032913,7]
[332643910,1721403054984,-150.0,0.00032914,7]
[332643911,1721403054996,-213.45477432,0.00032916,7]
[332643912,1721403055008,-150.0,0.00032917,7]
[332643913,1721403055019,-150.0,0.00032918,7]
[332643914,1721403055032,-150.0,0.00032918,7]
[332643915,1721403055042,-213.45477432,0.00032919,7]
[332643916,1721403055053,-150.0,0.00032919,7]
[332643917,1721403055063,-213.45477432,0.00032922,7]
[332643918,1721403055074,-150.0,0.00032923,7]
[332643919,1721403055084,-150.0,0.00032924,7]
[332643920,1721403055096,-213.45477432,0.00032925,7]
[332643921,1721403055108,-150.0,0.00032926,7]
[332643922,1721403055119,-150.0,0.00032927,7]
[332643923,1721403055130,-150.0,0.00032928,7]
[332643924,1721403055142,-213.45477432,0.00032928,7]
[332643925,1721403055153,-213.45477432,0.00032931,7]
[332643926,1721403055163,-150.0,0.00032932,7]
[332643927,1721403055174,-150.0,0.00032932,7]
[332643928,1721403055184,-213.45477432,0.00032934,7]
[332643929,1721403055196,-150.0,0.00032936,7]
[332643930,1721403055207,-150.0,0.00032937,7]
[332643931,1721403055218,-213.45477432,0.00032937,7]
[332643932,1721403055228,-150.0,0.00032939,7]
[332643933,1721403055241,-213.45477432,0.0003294,7]
[332643934,1721403055251,-150.0,0.00032942,7]
[332643935,1721403055263,-150.0,0.00032942,7]
[332643936,1721403055275,-213.45477432,0.00032943,7]
[332643937,1721403055288,-150.0,0.00032945,7]
[332643938,1721403055299,-150.0,0.00032946,7]
[332643939,1721403055309,-150.0,0.00032946,7]
[332643940,1721403055319,-213.45477432,0.00032946,7]
[332643941,1721403055330,-213.45477432,0.00032949,7]
[332643942,1721403055340,-150.0,0.00032951,7]
[332643943,1721403055350,-150.0,0.00032951,7]
[332643944,1721403055361,-213.45477432,0.00032952,7]
[332643945,1721403055371,-213.45477432,0.00032955,7]
[332643946,1721403055382,-150.0,0.00032955,7]
[332643947,1721403055393,-150.0,0.00032956,7]
[332643948,1721403055404,-150.0,0.00032958,7]
[332643949,1721403055414,-500.0,0.00032958,33]
[332643950,1721403055425,-810.17,0.00032958,33]
[332643951,1721403055435,-213.45477432,0.00032958,7]
[332643952,1721403055446,-150.0,0.0003296,7]
[332643953,1721403055462,-213.45477432,0.00032961,7]
[332643954,1721403055473,-150.0,0.00032962,7]
[332643955,1721403055485,-150.0,0.00032964,7]
[332643956,1721403055496,-213.45477432,0.00032964,7]
[332643957,1721403055507,-150.0,0.00032965,7]
[332643958,1721403055518,-150.0,0.00032965,7]
[332643959,1721403055529,-150.0,0.00032965,7]
[332643960,1721403055541,-213.45477432,0.00032967,7]
[332643961,1721403055552,-150.0,0.00032969,7]
[332643962,1721403055562,-213.45477432,0.0003297,7]
[332643963,1721403055573,-150.0,0.0003297,7]
[332643964,1721403055583,-213.45477432,0.00032973,7]
[332643965,1721403055593,-150.0,0.00032974,7]
[332643966,1721403055605,-150.0,0.00032975,7]
[332643967,1721403055615,-213.45477432,0.00032976,7]
[332643968,1721403055625,-150.0,0.00032977,7]
[332643969,1721403055636,-150.0,0.00032978,7]
[332643970,1721403055647,-213.45477432,0.00032979,7]
[332643971,1721403055658,-213.45477432,0.00032983,7]
[332643972,1721403055670,-150.0,0.00032983,7]
[332643973,1721403055681,-150.0,0.00032983,7]
[332643974,1721403055691,-1650.1953,0.00032983,2]
[332643975,1721403055702,-150.0,0.00032985,7]
[332643976,1721403055713,-213.45477432,0.00032986,7]
[332643977,1721403055724,-150.0,0.00032988,7]
[332643978,1721403055735,-150.0,0.00032988,7]
[332643979,1721403055746,-213.45477432,0.00032989,7]
[332643980,1721403055757,-150.0,0.0003299,7]
[332643981,1721403055768,-213.45477432,0.00032992,7]
[332643982,1721403055778,-150.0,0.00032992,7]
[332643983,1721403055797,-150.0,0.00032994,7]
[332643984,1721403055807,-213.45477432,0.00032995,7]
[332643985,1721403055820,-150.0,0.00032996,7]
[332643986,1721403055831,-150.0,0.00032997,7]
[332643987,1721403055842,-213.45477432,0.00032998,7]
[332643988,1721403055853,-150.0,0.00032999,7]
[332643989,1721403055864,-2000.0,0.00033,9]
[332643990,1721403055874,-2000.0,0.00033,2]
[332643991,1721403055885,-3078.41752238,0.00033,4]